bitfinex/quotes_BTCUSD_20240823
["timestamp","ask_amount","ask_price","bid_price","bid_amount"]
[1724425111261,0.3164,61076.0,61060.0,0.36871759]
[1724425111465,0.3164,61076.0,61075.0,0.163733]
[1724425111668,0.3164,61076.0,61075.0,0.491199]
[1724425111881,0.3205,61088.0,61076.0,0.1833]
[1724425112086,0.3205,61088.0,61077.0,0.16400298]
[1724425112087,0.00245171,61087.0,61077.0,0.16400298]
[1724425112290,0.12295171,61088.0,61077.0,0.16400298]
[1724425112494,0.12295171,61088.0,61084.0,0.163706]
[1724425112697,0.12295171,61088.0,61077.0,0.327453]
[1724425112923,0.12295171,61088.0,61081.0,0.163716]
[1724425113128,0.28665071,61088.0,61078.0,0.163725]
[1724425113335,0.12295171,61088.0,61087.0,0.1637]
[1724425113741,0.12295171,61088.0,61078.0,0.16400298]
[1724425113742,0.12295171,61088.0,61079.0,0.327443]
[1724425113939,0.12295171,61088.0,61083.0,0.163711]
[1724425114082,0.12295171,61088.0,61081.0,0.163715]
[1724425114291,0.12295171,61088.0,61082.0,0.163713]
[1724425114478,0.12295171,61088.0,61069.0,0.1841]
[1724425114682,0.12295171,61088.0,61083.0,0.163708]
[1724425115250,0.12295171,61088.0,61070.0,0.26400298]
[1724425115251,0.12295171,61088.0,61070.0,0.16400298]
[1724425115494,0.12395171,61088.0,61084.0,0.327417]
[1724425115689,0.12395171,61088.0,61070.0,0.16400298]
[1724425115690,0.163706,61085.0,61074.0,0.32747]
[1724425115897,0.16400298,61087.0,61070.0,0.00766779]
[1724425116078,0.163717,61081.0,61072.0,0.16374]
[1724425116292,0.16371,61084.0,61075.0,0.163732]
[1724425116481,0.327413,61085.0,61070.0,0.1]
[1724425116697,0.327413,61085.0,61062.0,0.5046]
[1724425116698,0.3066,61079.0,61069.0,0.00775755]
[1724425116894,0.3066,61079.0,61072.0,0.163738]
[1724425116895,0.1939,61078.0,61072.0,0.163738]
[1724425117063,0.1939,61078.0,61068.0,0.327501]
[1724425117268,0.1939,61078.0,61062.0,0.00783639]
[1724425117269,0.163763,61064.0,61062.0,0.00783639]
[1724425117515,0.3071,61062.0,61054.0,0.163788]
[1724425117793,0.191,61060.0,61044.0,0.0025]
[1724425117995,0.327552,61059.0,61044.0,0.16650298]
[1724425118292,0.191,61060.0,61054.0,0.163787]
[1724425118729,0.191,61060.0,61054.0,0.004]
[1724425118931,0.3071,61062.0,61061.0,0.16377]
[1724425119207,0.1878,61070.0,61059.0,0.327549]
[1724425119208,0.02568098,61065.0,61059.0,0.327549]
[1724425119406,0.001,61060.0,61059.0,0.491328]
[1724425119605,0.001,61060.0,61059.0,0.163776]
[1724425119780,0.001,61060.0,61059.0,0.491328]
[1724425119982,0.001,61060.0,61059.0,0.81888]
[1724425120184,0.001,61060.0,61059.0,1.146432]
[1724425120385,0.001,61060.0,61059.0,1.31043498]
[1724425120564,0.33117933,61079.0,61078.0,0.491175]
[1724425120744,0.33117933,61079.0,61078.0,0.163725]
[1724425120981,0.33117933,61079.0,61072.0,0.327478]
[1724425121179,0.33117933,61079.0,61078.0,0.163725]
[1724425121517,0.33117933,61079.0,61078.0,0.491175]
[1724425121718,0.33117933,61079.0,61078.0,0.163725]
[1724425121923,0.33117933,61079.0,61078.0,0.491175]
[1724425121924,0.33217933,61079.0,61078.0,0.491175]
[1724425122718,0.001,61096.0,61078.0,0.491175]
[1724425122719,0.3352,61085.0,61084.0,0.163708]
[1724425122958,0.36087308,61085.0,61070.0,0.327491]
[1724425123204,0.36087308,61085.0,61079.0,0.163721]
[1724425123465,0.36087308,61085.0,61071.0,0.16400298]
[1724425123660,0.36087308,61085.0,61084.0,0.163708]
[1724425124073,0.36087308,61085.0,61084.0,0.491125]
[1724425124248,0.36487308,61085.0,61084.0,0.163708]
[1724425124427,0.36487308,61085.0,61084.0,0.491125]
[1724425124428,0.36087308,61085.0,61084.0,0.491125]
[1724425124624,0.02567308,61085.0,61084.0,0.818542]
[1724425124856,0.02667308,61085.0,61084.0,0.818542]
[1724425125060,0.02567308,61085.0,61084.0,0.818542]
[1724425125240,0.02667308,61085.0,61084.0,0.491125]
[1724425125644,0.02667308,61085.0,61084.0,0.493125]
[1724425126020,0.02667308,61085.0,61084.0,0.165708]
[1724425126207,0.02667308,61085.0,61084.0,0.002]
[1724425126596,0.02567308,61085.0,61084.0,0.002]
[1724425126937,0.3263,61084.0,61073.0,0.327474]
[1724425127134,0.3263,61084.0,61077.0,0.163726]
[1724425127341,0.3263,61084.0,61079.0,0.163721]
[1724425127752,0.02567308,61085.0,61071.0,0.16400298]
[1724425127964,0.02567308,61085.0,61082.0,0.163713]
[1724425128207,0.02567308,61085.0,61084.0,0.163708]
[1724425128613,0.02567308,61085.0,61080.0,0.327438]
[1724425128814,0.02567308,61085.0,61084.0,0.163708]
[1724425128991,0.02567308,61085.0,61071.0,0.16400298]
[1724425128992,0.02567308,61085.0,61082.0,0.163713]
[1724425129616,0.02567308,61085.0,61084.0,0.818542]
[1724425129948,0.3158,61105.0,61090.0,0.327384]
[1724425130075,0.49229154,61096.0,61094.0,0.163681]
[1724425130274,0.02567073,61102.0,61092.0,0.327374]
[1724425130478,0.02567073,61102.0,61090.0,0.16400298]
[1724425130789,0.18933173,61102.0,61094.0,0.163682]
[1724425131020,0.163664,61101.0,61092.0,0.163685]
[1724425131253,0.02567073,61102.0,61083.0,0.4948]
[1724425131254,0.02567073,61102.0,61096.0,0.163675]
[1724425131459,0.02567073,61102.0,61083.0,0.50249234]
[1724425131620,0.02667073,61102.0,61096.0,0.163675]
[1724425131987,0.02567073,61102.0,61096.0,0.163675]
[1724425132356,0.18933173,61102.0,61094.0,0.16368]
[1724425132532,0.18933173,61102.0,61095.0,0.163679]
[1724425132725,0.18933173,61102.0,61093.0,0.327367]
[1724425132954,0.18933173,61102.0,61095.0,0.163677]
[1724425132955,0.02567073,61102.0,61095.0,0.163677]
[1724425133153,0.3049,61091.0,61076.0,0.183]
[1724425133353,0.3049,61091.0,61077.0,0.16400298]
[1724425133712,0.3049,61091.0,61082.0,0.327425]
[1724425133919,0.3049,61091.0,61088.0,0.491094]
[1724425133920,0.02567062,61089.0,61088.0,0.491094]
[1724425134126,0.02567062,61089.0,61088.0,0.163698]
[1724425134346,0.02567062,61089.0,61088.0,0.491094]
[1724425134547,0.02567062,61089.0,61078.0,0.32745]
[1724425134845,0.327398,61088.0,61070.0,0.510487]
[1724425135066,0.16400298,61088.0,61070.0,0.183]
[1724425135225,0.16400298,61088.0,61058.0,0.68671642]
[1724425135226,0.5146,61081.0,61071.0,0.327484]
[1724425135423,0.5146,61081.0,61064.0,0.1976]
[1724425135667,0.5146,61081.0,61077.0,0.163725]
[1724425135843,0.02567377,61078.0,61075.0,0.163731]
[1724425136044,0.02567377,61078.0,61064.0,0.00778315]
[1724425136045,0.02508269,61078.0,61064.0,0.00778315]
[1724425136259,0.02508269,61078.0,61058.0,0.1985]
[1724425136457,0.02508269,61078.0,61064.0,0.327525]
[1724425136736,0.02508269,61078.0,61070.0,0.001]
[1724425136944,0.02508269,61078.0,61077.0,0.163727]
[1724425137139,0.02508269,61078.0,61077.0,0.491182]
[1724425137414,0.02508269,61078.0,61077.0,0.818637]
[1724425137606,0.02508269,61078.0,61077.0,1.146092]
[1724425137607,0.02608269,61078.0,61077.0,1.146092]
[1724425138042,0.001,61078.0,61077.0,1.146092]
[1724425138222,0.3231,61089.0,61088.0,0.163698]
[1724425138378,0.3231,61089.0,61077.0,0.491182]
[1724425138379,0.001,61078.0,61077.0,0.491182]
[1724425138594,0.001,61078.0,61077.0,0.818637]
[1724425138795,0.3231,61089.0,61085.0,0.163705]
[1724425139023,0.3231,61089.0,61088.0,0.163698]
[1724425139557,0.3231,61089.0,61086.0,0.163701]
[1724425139940,0.3231,61089.0,61077.0,0.008]
[1724425140130,0.3231,61089.0,61085.0,0.163703]
[1724425140347,0.3231,61089.0,61083.0,0.163711]
[1724425140495,0.001,61078.0,61077.0,0.50145798]
[1724425140700,0.3337,61094.0,61078.0,0.0015]
[1724425140945,0.3337,61094.0,61093.0,0.163684]
[1724425141144,0.3337,61094.0,61089.0,0.327386]
[1724425141348,0.3337,61094.0,61088.0,0.163696]
[1724425141555,0.002,61089.0,61078.0,0.328949]
[1724425141869,0.002,61089.0,61078.0,0.0015]
[1724425142169,0.3337,61094.0,61081.0,0.327429]
[1724425142594,0.163691,61091.0,61084.0,0.163708]
[1724425142792,0.163691,61091.0,61078.0,0.328945]
[1724425142793,0.003,61091.0,61080.0,0.327438]
[1724425142930,0.163686,61093.0,61084.0,0.163707]
[1724425143132,0.163686,61093.0,61085.0,0.163704]
[1724425143383,0.3337,61094.0,61086.0,0.163702]
[1724425143531,0.3337,61094.0,61088.0,0.163698]
[1724425143742,0.3337,61094.0,61089.0,0.163693]
[1724425143943,0.3397,61094.0,61089.0,0.001]
[1724425144483,0.3337,61094.0,61091.0,0.163688]
[1724425144681,0.3337,61094.0,61089.0,0.163694]
[1724425144885,0.3437,61094.0,61093.0,0.163684]
[1724425145066,0.005,61094.0,61093.0,0.163684]
[1724425145282,0.005,61094.0,61089.0,0.327389]
[1724425145651,0.005,61094.0,61091.0,0.163688]
[1724425145770,0.3358,61099.0,61081.0,0.3101]
[1724425145967,0.005,61094.0,61087.0,0.327401]
[1724425146234,0.005,61094.0,61092.0,0.163686]
[1724425146451,0.005,61094.0,61091.0,0.163688]
[1724425146660,0.005,61094.0,61093.0,0.163684]
[1724425146885,0.011,61094.0,61093.0,0.163684]
[1724425147088,0.011,61094.0,61093.0,0.491053]
[1724425147264,0.006,61094.0,61093.0,0.491053]
[1724425147511,0.3358,61099.0,61093.0,0.327369]
[1724425147847,0.3358,61099.0,61096.0,0.163676]
[1724425147982,0.3358,61099.0,61094.0,0.16368]
[1724425148165,0.3358,61099.0,61094.0,0.327363]
[1724425148372,0.3358,61099.0,61095.0,0.163678]
[1724425148794,0.3358,61099.0,61093.0,0.007]
[1724425149069,0.03358,61098.0,61093.0,0.01]
[1724425149275,0.491046,61094.0,61093.0,0.007]
[1724425150157,0.821866,61079.0,61078.0,0.0015]
[1724425150322,1.50041298,61079.0,61078.0,0.0015]
[1724425150718,1.82785698,61079.0,61078.0,0.0015]
[1724425151097,1.17296898,61079.0,61078.0,0.0015]
[1724425151360,1.50041298,61079.0,61078.0,0.0015]
[1724425151535,1.17596898,61079.0,61078.0,0.0015]
[1724425151737,0.5238,61079.0,61078.0,0.0025]
[1724425152118,0.005,61079.0,61078.0,0.165225]
[1724425152316,0.005,61079.0,61078.0,0.492675]
[1724425152542,0.007,61079.0,61078.0,0.492675]
[1724425152789,0.007,61079.0,61078.0,0.493675]
[1724425153129,0.007,61079.0,61078.0,0.821125]
[1724425153557,0.007,61079.0,61078.0,1.148575]
[1724425153958,0.007,61079.0,61078.0,1.461775]
[1724425153959,0.002,61079.0,61078.0,1.461775]
[1724425154336,0.3222,61090.0,61084.0,0.327417]
[1724425154641,0.3222,61090.0,61086.0,0.163702]
[1724425154817,0.3222,61090.0,61085.0,0.163706]
[1724425155035,0.3222,61090.0,61084.0,0.327417]
[1724425155255,0.3222,61090.0,61085.0,0.163704]
[1724425155469,0.3222,61090.0,61081.0,0.327431]
[1724425155670,0.163702,61087.0,61078.0,0.0035]
[1724425155871,0.163722,61079.0,61078.0,0.0015]
[1724425156078,0.98176898,61079.0,61078.0,0.0015]
[1724425156502,0.98276898,61079.0,61078.0,0.0015]
[1724425156702,0.817766,61079.0,61078.0,0.0015]
[1724425156932,1.50709879,61079.0,61078.0,0.0015]
[1724425157142,1.56828938,61079.0,61078.0,0.0015]
[1724425157330,0.515,61079.0,61078.0,0.0015]
[1724425157531,0.3266,61079.0,61078.0,0.0015]
[1724425157953,0.3216,61079.0,61078.0,0.0015]
[1724425158584,0.005,61079.0,61078.0,0.0015]
[1724425158814,0.005,61079.0,61078.0,0.820125]
[1724425159000,0.005,61079.0,61078.0,1.147575]
[1724425159201,0.05,61079.0,61078.0,1.49497798]
[1724425159377,0.051,61079.0,61078.0,1.49697798]
[1724425159577,0.051,61079.0,61078.0,1.49997798]
[1724425160607,0.05,61079.0,61078.0,1.49797798]
[1724425160819,0.05,61079.0,61078.0,1.49497798]
[1724425161026,0.051,61079.0,61078.0,1.01343853]
[1724425161224,0.051,61079.0,61078.0,1.02543853]
[1724425161660,0.05,61079.0,61078.0,1.01143853]
[1724425161865,0.051,61079.0,61078.0,1.50489151]
[1724425162076,0.051,61079.0,61078.0,1.51689151]
[1724425162743,0.051,61079.0,61078.0,1.50489151]
[1724425162918,0.001,61079.0,61078.0,1.17744151]
[1724425163295,0.001,61079.0,61078.0,1.50489151]
[1724425163613,0.3388,61094.0,61088.0,0.163697]
[1724425163956,0.001,61079.0,61078.0,0.68626651]
[1724425164266,0.001,61079.0,61078.0,1.17744151]
[1724425164737,0.002,61079.0,61078.0,1.51889151]
[1724425165279,0.001,61079.0,61078.0,1.51689151]
[1724425165483,0.002,61079.0,61078.0,1.51889151]
[1724425165682,0.001,61079.0,61078.0,1.50489151]
[1724425166086,0.002,61079.0,61078.0,1.51889151]
[1724425166729,0.002,61079.0,61078.0,0.181225]
[1724425166933,0.001,61079.0,61078.0,0.0155]
[1724425167136,0.002,61079.0,61078.0,0.0175]
[1724425167386,0.5435069,61079.0,61078.0,0.0175]
[1724425167587,0.5435069,61079.0,61078.0,0.0035]
[1724425167588,0.164722,61079.0,61078.0,0.0035]
[1724425167702,0.491166,61079.0,61078.0,0.00149968]
[1724425167905,0.491166,61079.0,61078.0,0.01400001]
[1724425167906,0.492166,61079.0,61078.0,0.01400001]
[1724425168110,0.002,61079.0,61078.0,0.01600001]
[1724425168317,0.001,61079.0,61078.0,0.00200001]
[1724425168518,0.163721,61080.0,61078.0,1e-08]
[1724425168519,1.163721,61080.0,61078.0,1e-08]
[1724425168782,0.492166,61079.0,61078.0,0.00400001]
[1724425169023,0.164722,61079.0,61078.0,0.00400001]
[1724425169421,0.164722,61079.0,61078.0,0.00200001]
[1724425169422,0.492166,61079.0,61078.0,0.00200001]
[1724425170081,0.491166,61079.0,61078.0,1e-08]
[1724425170320,0.163722,61079.0,61078.0,1e-08]
[1724425170721,1.14494776,61079.0,61078.0,1e-08]
[1724425171042,1.09392717,61079.0,61078.0,0.00196001]
[1724425171396,1.09392717,61079.0,61053.0,0.1968]
[1724425171397,0.3238,61077.0,61059.0,0.3353469]
[1724425171596,0.18700298,61076.0,61059.0,0.0077979]
[1724425171769,0.001,61070.0,61041.0,0.1968]
[1724425171971,0.04725319,61066.0,61047.0,0.327611]
[1724425172189,0.32752,61065.0,61047.0,0.16400298]
[1724425172471,0.327529,61064.0,61047.0,0.16400298]
[1724425172612,0.163764,61064.0,61055.0,0.163785]
[1724425172810,0.3238,61062.0,61055.0,0.163786]
[1724425173008,0.3238,61062.0,61047.0,0.16400298]
[1724425173212,0.3238,61062.0,61058.0,0.327556]
[1724425173414,0.3238,61062.0,61051.0,0.3234]
[1724425173773,0.3247,61069.0,61052.0,0.16400298]
[1724425174072,0.3247,61069.0,61060.0,0.163772]
[1724425174073,0.006,61066.0,61060.0,0.163772]
[1724425174279,0.5573556,61065.0,61054.0,0.327577]
[1724425174485,0.3114,61065.0,61061.0,0.327539]
[1724425174626,0.006,61066.0,61062.0,0.327534]
[1724425175021,0.3209,61070.0,61057.0,0.1933]
[1724425175282,0.001,61069.0,61068.0,0.491254]
[1724425175487,0.006,61069.0,61068.0,0.818757]
[1724425175685,0.006,61069.0,61068.0,1.14626]
[1724425176469,0.005,61069.0,61068.0,1.14626]
[1724425176696,0.005,61069.0,61068.0,1.33596]
[1724425176889,0.05,61079.0,61078.0,0.163725]
[1724425177266,0.05,61079.0,61078.0,0.491175]
[1724425177981,0.05,61079.0,61078.0,0.497175]
[1724425178188,0.051,61079.0,61078.0,0.497175]
[1724425178528,0.051,61079.0,61078.0,0.493175]
[1724425178764,0.051,61079.0,61078.0,0.820625]
[1724425178961,0.052,61079.0,61078.0,1.149925]
[1724425179285,0.052,61079.0,61078.0,1.31392798]
[1724425179487,0.052,61079.0,61078.0,2.16482798]
[1724425179685,0.052,61079.0,61078.0,2.26682798]
[1724425179886,0.051,61079.0,61078.0,2.61527798]
[1724425180136,0.05,61079.0,61078.0,2.60327798]
[1724425180307,0.051,61079.0,61078.0,2.27982798]
[1724425180482,0.05,61079.0,61078.0,2.27482798]
[1724425180821,0.052,61079.0,61078.0,2.29182798]
[1724425181024,0.052,61079.0,61078.0,2.29382798]
[1724425181200,0.05,61079.0,61078.0,2.27782798]
[1724425181594,1.0,61080.0,61079.0,1.985498]
[1724425181595,0.36715025,61080.0,61079.0,1.985498]
[1724425181802,0.36715025,61080.0,61079.0,2.20535098]
[1724425182112,0.36715025,61080.0,61079.0,2.30535098]
[1724425182245,0.36715025,61080.0,61079.0,2.63279498]
[1724425182445,0.36715025,61080.0,61079.0,2.59994498]
[1724425183043,0.36715025,61080.0,61079.0,2.59594498]
[1724425183271,0.36715025,61080.0,61079.0,2.59794498]
[1724425183471,0.36715025,61080.0,61079.0,2.61194498]
[1724425183675,0.36715025,61080.0,61079.0,2.60994498]
[1724425184052,0.36715025,61080.0,61079.0,2.26850098]
[1724425184251,0.36715025,61080.0,61079.0,2.59894498]
[1724425184450,0.36815025,61080.0,61079.0,2.62794498]
[1724425184799,0.36715025,61080.0,61079.0,2.59994498]
[1724425184998,0.36715025,61080.0,61079.0,2.61394498]
[1724425185196,0.36715025,61080.0,61079.0,2.62794498]
[1724425185417,0.36715025,61080.0,61079.0,2.62394498]
[1724425185621,0.36715025,61080.0,61079.0,2.62594498]
[1724425185820,0.36715025,61080.0,61079.0,2.62394498]
[1724425186020,0.36715025,61080.0,61079.0,2.62594498]
[1724425186698,0.36715025,61080.0,61079.0,2.29550098]
[1724425186900,0.36715025,61080.0,61079.0,2.29650098]
[1724425187104,0.36715025,61080.0,61079.0,2.28250098]
[1724425187327,0.36715025,61080.0,61079.0,2.29650098]
[1724425187607,0.36715025,61080.0,61079.0,2.29850098]
[1724425188138,0.36715025,61080.0,61079.0,2.29550098]
[1724425188341,0.36715025,61080.0,61079.0,2.6316624]
[1724425189987,0.36715025,61080.0,61079.0,2.6346624]
[1724425190390,0.36715025,61080.0,61079.0,2.6316624]
[1724425193585,0.36715025,61080.0,61079.0,2.6576624]
[1724425193824,0.36715025,61080.0,61079.0,2.6406624]
[1724425194607,0.36815025,61080.0,61079.0,2.6406624]
[1724425194812,0.36815025,61080.0,61079.0,2.6176624]
[1724425195024,0.36715025,61080.0,61079.0,2.6176624]
[1724425195267,0.36815025,61080.0,61079.0,2.6316624]
[1724425195426,0.36815025,61080.0,61079.0,2.6576624]
[1724425195636,0.36815025,61080.0,61079.0,2.6546624]
[1724425196058,0.36815025,61080.0,61079.0,2.6556624]
[1724425196436,0.36815025,61080.0,61079.0,2.6546624]
[1724425196843,0.1,61124.0,61079.0,2.6546624]
[1724425196844,0.4861,61112.0,61097.0,0.3117]
[1724425197051,0.4861,61112.0,61111.0,0.163636]
[1724425197229,0.4861,61112.0,61111.0,0.490909]
[1724425197704,0.4861,61112.0,61098.0,0.427341]
[1724425197705,0.1804,61112.0,61098.0,0.427341]
[1724425197914,0.1804,61112.0,61098.0,0.1]
[1724425197915,0.3045,61111.0,61098.0,0.1]
[1724425198329,0.3045,61111.0,61102.0,0.327317]
[1724425198548,0.3045,61111.0,61105.0,0.163652]
[1724425198754,0.3045,61111.0,61107.0,0.163647]
[1724425198988,0.3045,61111.0,61105.0,0.163651]
[1724425199178,0.3045,61111.0,61106.0,0.163649]
[1724425199388,0.3045,61111.0,61103.0,0.327313]
[1724425199389,0.3045,61111.0,61105.0,0.163652]
[1724425199596,0.1893,61099.0,61097.0,0.163672]
[1724425199881,0.1893,61099.0,61082.0,0.1885]
[1724425200082,0.1893,61099.0,61080.0,0.3074]
[1724425200083,0.1893,61099.0,61088.0,0.00059117]
[1724425200314,0.3024,61098.0,61088.0,0.00059117]
[1724425200572,0.3024,61097.0,61088.0,0.00059117]
[1724425200779,0.001,61103.0,61088.0,0.00059117]
[1724425200780,0.3024,61095.0,61088.0,0.00059117]
[1724425200954,1.318477,61089.0,61088.0,0.00059117]
[1724425201312,1.81387098,61089.0,61088.0,0.00059117]
[1724425201518,1.81387098,61089.0,61038.0,0.35334014]
[1724425201519,0.1198,61067.0,61038.0,0.35334014]
[1724425201729,0.61439398,61089.0,61038.0,0.02567614]
[1724425201730,0.611094,61052.0,61038.0,0.02567614]
[1724425201947,0.3275,61051.0,61038.0,0.02567614]
[1724425202160,0.3275,61051.0,61043.0,0.163818]
[1724425202368,0.330561,61058.0,61010.0,0.004]
[1724425202369,0.163826,61041.0,61031.0,0.164049]
[1724425202594,0.4273,61040.0,61031.0,0.0002]
[1724425202800,0.4273,61040.0,61039.0,0.163829]
[1724425203010,0.4273,61040.0,61032.0,0.327694]
[1724425203187,0.3292,61039.0,61019.0,0.19768672]
[1724425203392,0.3292,61039.0,61034.0,0.327683]
[1724425203600,0.3292,61039.0,61025.0,0.327734]
[1724425203825,0.3292,61039.0,61026.0,0.16400298]
[1724425203940,0.3292,61039.0,61038.0,0.163832]
[1724425204325,0.3292,61039.0,61022.0,0.35916142]
[1724425204326,0.163843,61034.0,61019.0,0.00778672]
[1724425204529,0.1198,61040.0,61019.0,0.00778672]
[1724425204530,0.3241,61033.0,61020.0,0.16400298]
[1724425204730,0.3241,61033.0,61023.0,0.327744]
[1724425204931,0.3241,61033.0,61027.0,0.16386]
[1724425205086,0.3241,61033.0,61020.0,0.16400298]
[1724425205087,0.3241,61033.0,61021.0,0.163877]
[1724425205291,0.1908,61031.0,61024.0,0.163869]
[1724425205504,0.1908,61031.0,61020.0,0.163879]
[1724425205697,0.3293,61027.0,61011.0,0.0079368]
[1724425205898,0.3293,61027.0,61020.0,0.004]
[1724425206553,0.3293,61027.0,61026.0,0.819322]
[1724425206713,0.07006518,61056.0,61026.0,0.819322]
[1724425206714,0.3304,61035.0,61034.0,0.163843]
[1724425206966,0.001,61061.0,61041.0,0.327648]
[1724425206967,0.3304,61050.0,61041.0,0.327648]
[1724425207156,0.3304,61050.0,61049.0,0.491407]
[1724425207359,0.49229154,61068.0,61059.0,0.163774]
[1724425207678,0.003,61079.0,61050.0,0.00327568]
[1724425207876,0.001,61078.0,61050.0,0.00327568]
[1724425208100,0.5165,61077.0,61067.0,0.163753]
[1724425208300,0.5165,61077.0,61057.0,0.327562]
[1724425208301,0.3141,61071.0,61057.0,0.327562]
[1724425208516,0.3141,61071.0,61051.0,0.16400298]
[1724425208517,0.16400298,61070.0,61051.0,0.16400298]
[1724425208750,0.644591,61071.0,61052.0,0.1]
[1724425208751,0.3141,61071.0,61052.0,0.1]
[1724425208868,0.3141,61071.0,61053.0,0.16400298]
[1724425209068,0.49229154,61091.0,61051.0,0.00762228]
[1724425209069,0.5246,61068.0,61051.0,0.00762228]
[1724425209336,0.5246,61068.0,61050.0,0.001]
[1724425209337,0.3336,61066.0,61050.0,0.001]
[1724425209476,0.662119,61066.0,61050.0,0.001]
[1724425209671,0.163763,61064.0,61054.0,0.163788]
[1724425210033,0.664119,61066.0,61065.0,0.163759]
[1724425210034,0.3336,61066.0,61065.0,0.163759]
[1724425210186,0.3336,61066.0,61059.0,0.001]
[1724425210387,0.661116,61066.0,61059.0,0.001]
[1724425210603,0.193,61068.0,61059.0,0.001]
[1724425210604,0.474173,61060.0,61059.0,0.001]
[1724425210801,0.474173,61060.0,61038.0,0.49229154]
[1724425210802,0.3104,61058.0,61038.0,0.49229154]
[1724425211000,0.3104,61058.0,61034.0,0.02568085]
[1724425211001,0.3104,61058.0,61054.0,0.004]
[1724425211200,0.47540298,61058.0,61054.0,0.004]
[1724425211738,0.3322,61048.0,61036.0,0.163836]
[1724425211934,0.3322,61048.0,61034.0,0.18952285]
[1724425211935,0.163819,61043.0,61034.0,0.18952285]
[1724425212131,0.194,61045.0,61041.0,0.163823]
[1724425212330,0.194,61045.0,61044.0,0.163816]
[1724425212531,0.41838417,61066.0,61044.0,0.163816]
[1724425212532,0.196,61060.0,61048.0,0.327606]
[1724425212743,0.196,61060.0,61059.0,0.491328]
[1724425212744,0.002,61060.0,61059.0,0.491328]
[1724425213141,0.002,61060.0,61046.0,0.3134]
[1724425213318,0.002,61060.0,61044.0,0.16400298]
[1724425213319,0.001,61067.0,61049.0,0.163801]
[1724425213519,0.001,61067.0,61044.0,0.16400298]
[1724425213520,0.163768,61062.0,61044.0,0.16400298]
[1724425213721,0.327523,61065.0,61050.0,0.327597]
[1724425213924,0.1839,61053.0,61041.0,0.00788005]
[1724425214124,0.1839,61053.0,61030.0,0.02569039]
[1724425214125,0.163813,61045.0,61030.0,0.02569039]
[1724425214330,0.16400298,61052.0,61046.0,0.009]
[1724425214664,0.1839,61053.0,61049.0,0.005]
[1724425214818,0.31,61054.0,61053.0,0.491376]
[1724425215006,0.31,61054.0,61053.0,0.163792]
[1724425215201,1.14730354,61068.0,61053.0,0.163792]
[1724425215202,0.5191,61068.0,61061.0,0.163768]
[1724425215457,0.49229154,61067.0,61060.0,0.163771]
[1724425215606,0.5191,61068.0,61059.0,0.32755]
[1724425215806,0.5191,61068.0,61045.0,0.1]
[1724425215807,0.75138688,61068.0,61045.0,0.1]
[1724425216063,0.75138688,61068.0,61030.0,0.03969039]
[1724425216064,0.001,61061.0,61039.0,0.1947]
[1724425216233,0.3218,61066.0,61039.0,0.1947]
[1724425216234,0.163799,61051.0,61039.0,0.16400298]
[1724425216433,0.32759,61052.0,61033.0,0.00778324]
[1724425216710,0.3251,61039.0,61035.0,0.163839]
[1724425216940,0.5138,61071.0,61047.0,0.327611]
[1724425217143,0.5138,61071.0,61035.0,0.1931]
[1724425217144,0.49229154,61057.0,61052.0,0.16400298]
[1724425217354,0.5138,61071.0,61052.0,0.16400298]
[1724425217482,0.5138,61071.0,61053.0,0.0092756]
[1724425217689,0.5138,61071.0,61056.0,0.327563]
[1724425217889,0.5138,61071.0,61061.0,0.32754]
[1724425218094,0.5138,61071.0,61053.0,0.006]
[1724425218095,0.327522,61065.0,61053.0,0.006]
[1724425218303,0.3321,61064.0,61058.0,0.163777]
[1724425218506,0.3321,61064.0,61056.0,0.163782]
[1724425218705,0.16400298,61063.0,61036.0,0.3421]
[1724425218908,0.001,61054.0,61053.0,0.17379]
[1724425219298,0.001,61054.0,61052.0,0.014]
[1724425219483,0.001,61054.0,61049.0,0.1638]
[1724425219689,0.001,61054.0,61050.0,0.163798]
[1724425219891,0.001,61054.0,61043.0,0.327635]
[1724425220142,0.001,61054.0,61044.0,0.16400298]
[1724425220345,0.515,61059.0,61056.0,0.163782]
[1724425220666,0.3264,61066.0,61057.0,0.16400298]
[1724425220877,0.1843,61073.0,61072.0,0.163741]
[1724425221270,0.3132,61074.0,61061.0,0.3296]
[1724425221578,0.3132,61074.0,61057.0,0.16400298]
[1724425221780,0.3191,61066.0,61056.0,0.006]
[1724425221950,0.3191,61066.0,61036.0,0.03285]
[1724425221951,0.1943,61064.0,61048.0,0.00770858]
[1724425222130,0.163774,61060.0,61048.0,0.00770858]
[1724425222332,0.1933,61064.0,61049.0,0.16400298]
[1724425222652,0.1933,61064.0,61055.0,0.327569]
[1724425222851,0.1933,61064.0,61042.0,0.33091781]
[1724425222852,0.16376,61065.0,61054.0,0.327578]
[1724425223053,0.003,61061.0,61035.0,0.5281]
[1724425223270,0.3195,61063.0,61035.0,0.5281]
[1724425223271,0.3195,61063.0,61051.0,0.327594]
[1724425223472,0.3195,61063.0,61049.0,0.327605]
[1724425223670,0.3195,61055.0,61037.0,0.16400298]
[1724425224021,0.3195,61055.0,61049.0,0.163801]
[1724425224313,0.163812,61046.0,61033.0,0.327686]
[1724425224517,0.163812,61046.0,61011.0,0.0468508]
[1724425224518,0.496513,61045.0,61037.0,0.163834]
[1724425224718,0.496513,61045.0,61039.0,0.163829]
[1724425224719,0.3327,61045.0,61039.0,0.163829]
[1724425224893,0.3327,61045.0,61035.0,0.327679]
[1724425224894,0.496514,61045.0,61035.0,0.327679]
[1724425225093,0.3327,61045.0,61034.0,0.16400298]
[1724425225295,0.36597,61045.0,61038.0,0.16383]